[Event "Israel-ch Youth U8-18 2024"]
[Site "Kfar Saba"]
[Date "2024.04.16"]
[Round "1.12"]
[White "Bar-Lavi, Yonatan"]
[Black "Gurevich, Neria"]
[Result "0-1"]
[ECO "B38"]
[WhiteElo "1562"]
[BlackElo "1844"]
[Annotator "NA RC"]
[PlyCount "62"]
[EventDate "2024.04.10"]
[EventType "swiss"]
[EventCountry "ISR"]
[SourceTitle "playchess.com"]
[Source "ChessBase"]
[SourceQuality "1"]
[TimeControl "5400+30"]

{[%evp 30,62,34,20,40,31,38,0,0,-4,8,-21,20,0,7,-31,0,-60,-14,32767,32767,-54,0,0,0,-47,-41,-147,-169,-167,-143,-522,-511,-494,-460]} 1. d4 {[%emt 0:00:03]} Nf6 {[%emt 0:00:09]} 2. c4 {[%emt 0:00:08]} g6 {[%emt 0:00:13]} 3. Nc3 {[%emt 0:00:11]} Bg7 {[%emt 0:00:19]} 4. e4 {[%emt 0:00:13]} d6 {[%emt 0:00:28]} 5. Nf3 {[%emt 0:00:24]} O-O {[%emt 0:00:34]} 6. Be2 {[%emt 0:00:28]} c5 {[%emt 0:00:34]} 7. O-O {[%emt 0:01:06]} cxd4 {[%emt 0:00:40]} 8. Nxd4 {[%emt 0:00:10]} Nc6 {[%emt 0:00:28]} 9. Be3 {[%emt 0:00:38]} Bd7 {[%emt 0:00:46]} 10. f3 {[%emt 0:00:48] 10.h3 is the modern continuation.} Nxd4 {[%emt 0:00:56]} 11. Bxd4 {[%emt 0:00:11]} Bc6 {[%emt 0:00:44]} 12. Nd5 {[%emt 0:02:03] B38: Sicilian: Maroczy Bind with 5...Bg7 and 7...0-0.} Nd7 {[%emt 0:02:32]} 13. Bxg7 {[%emt 0:01:28]} Kxg7 {[%emt 0:00:11]} 14. Qd2 {[%emt 0:01:47]} a5 {[%emt 0:03:37]} 15. b3 {[%emt 0:02:09]} Rc8 $146 {[%emt 0:03:13]} ({Predecessor:} 15... Bxd5 16. exd5 Qb6+ 17. Kh1 Qb4 18. Qb2+ Kg8 19. a3 Qb6 20. f4 Rfe8 21. Bd3 e5 22. dxe6 Rxe6 {1-0 Moosavifar,S (2283)-Heinechen,J (2169) Titled Tuesday intern op 16th Jan Early blitz 2024 (4)}) 16. Kh1 {[%emt 0:02:53]} Bxd5 {[%emt 0:01:31]} 17. exd5 {[%emt 0:00:09]} Qb6 {[%emt 0:01:07]} 18. Bd1 {[%emt 0:02:08]} Nf6 {[%emt 0:02:29]} 19. Re1 {[%emt 0:02:10]} Rfe8 {[%emt 0:00:53]} 20. Bc2 {[%emt 0:01:31]} Rc7 {[%emt 0:00:52]} (20... Qb4 $142 21. Qd1 b5) 21. Re2 {[%emt 0:01:28]} Qc5 {[%emt 0:02:54]} 22. Rae1 {[%emt 0:01:47] [#]} (22. a4 $11) 22... a4 $1 {[%emt 0:04:09]} 23. h3 {[%emt 0:03:08]} (23. bxa4 Qxc4 24. Bb3 Qc3 $16) (23. g4 $11) 23... axb3 {[%emt 0:08:28]} 24. axb3 {[%emt 0:00:15]} b5 {[%emt 0:00:12]} 25. Bd3 {[%emt 0:01:54]} Nh5 {[%emt 0:03:52]} 26. Kh2 {[%emt 0:01:36]} ({Of course not} 26. cxb5 Ng3+ (26... Qxd5 27. Qb2+ e5 28. Bc4 $11) 27. Kh2 Nxe2 28. Bxe2 Qc3 29. Qxc3+ Rxc3 $17) 26... Nf6 {[%emt 0:03:03]} 27. Kh1 {[%emt 0:02:59]} Qd4 $1 $15 {[%emt 0:01:40]} 28. Re3 $17 {[%emt 0:09:33] [#]} (28. Kh2 $15) 28... bxc4 $1 {[%emt 0:00:22]} 29. bxc4 {[%emt 0:00:06]} Rxc4 {[%emt 0:00:26]} 30. Re4 $2 {[%emt 0:03:12]} (30. Rxe7 $17 {is tougher.} Rxe7 31. Rxe7) 30... Nxe4 {[%emt 0:00:10]} 31. Rxe4 {[%emt 0:00:03]} Qc3 {[%emt 0:00:11]} ({Weaker is} 31... Qxd5 32. Rxc4 Qe6 33. Rh4 $18) 0-1

[Event "Israel-ch Youth U8-18 2024"]
[Site "Kfar Saba"]
[Date "2024.04.16"]
[Round "1.13"]
[White "Cohen, Israel"]
[Black "Hornfeld, Ariel"]
[Result "1-0"]
[ECO "D36"]
[WhiteElo "1763"]
[BlackElo "1419"]
[Annotator "NA RC"]
[PlyCount "109"]
[EventDate "2024.04.10"]
[EventType "swiss"]
[EventCountry "ISR"]
[SourceTitle "playchess.com"]
[Source "ChessBase"]
[SourceQuality "1"]
[TimeControl "5400+30"]

1. d4 {[%emt 0:00:02]} d5 {[%emt 0:00:18]} 2. c4 {[%emt 0:00:07]} e6 {[%emt 0:00:21]} 3. Nc3 {[%emt 0:00:18]} Nf6 {[%emt 0:00:19]} 4. cxd5 {[%emt 0:00:14]} exd5 {[%emt 0:00:40]} 5. Bg5 {[%emt 0:00:21]} Be7 {[%emt 0:01:01]} 6. e3 {[%emt 0:00:33]} O-O {[%emt 0:00:50]} 7. Bd3 {[%emt 0:00:17]} c6 {[%emt 0:01:33]} 8. Qc2 {[%emt 0:00:34]} h6 {[%emt 0:00:59]} 9. Bh4 {[%emt 0:00:23]} Be6 {[%emt 0:01:15]} 10. Nge2 {[%emt 0:00:17]} Na6 {[%emt 0:01:06]} 11. a3 {[%emt 0:01:23]} c5 {[%emt 0:00:42]} 12. O-O {[%emt 0:07:23]} c4 {[%emt 0:00:31]} 13. Bf5 {[%emt 0:00:26]} Qd7 {[%emt 0:01:46]} 14. Bxe6 {[%emt 0:00:24]} fxe6 {[%emt 0:00:37]} 15. f3 {[%emt 0:06:24]} Qe8 {[%emt 0:02:30]} 16. h3 {[%emt 0:07:57]} Rc8 {[%emt 0:01:17]} 17. Bf2 {[%emt 0:07:07]} Bd6 {[%emt 0:01:54]} 18. Rac1 {[%emt 0:03:58]} e5 {[%emt 0:01:25]} 19. dxe5 {[%emt 0:02:31]} Bxe5 {[%emt 0:01:14]} 20. Rfd1 {[%emt 0:01:23]} Qf7 {[%emt 0:00:53]} 21. Nb5 {[%emt 0:09:00]} Qd7 {[%emt 0:02:39]} 22. Nbd4 {[%emt 0:01:39]} Nc5 {[%emt 0:01:18]} 23. Rf1 {[%emt 0:15:27]} Nd3 {[%emt 0:00:42]} 24. Rcd1 {[%emt 0:00:18]} Rfe8 {[%emt 0:03:42]} 25. b3 {[%emt 0:08:08]} b5 {[%emt 0:00:23]} 26. Nc1 {[%emt 0:04:48]} Nxc1 {[%emt 0:01:15]} 27. Qxc1 {[%emt 0:00:44]} Bxd4 {[%emt 0:00:51]} 28. Rxd4 {[%emt 0:00:17]} cxb3 {[%emt 0:02:02]} 29. Qb2 {[%emt 0:00:12]} Qb7 {[%emt 0:02:19]} 30. Qxb3 {[%emt 0:00:28]} Rc5 {[%emt 0:01:08]} 31. Rfd1 {[%emt 0:01:21]} Rd8 {[%emt 0:00:34]} 32. Bh4 {[%emt 0:00:46]} g5 {[%emt 0:01:33]} 33. Bg3 {[%emt 0:00:20]} Qe7 {[%emt 0:01:19]} 34. e4 {[%emt 0:00:45]} Qf7 {[%emt 0:01:02]} 35. Be5 {[%emt 0:02:38]} Nd7 {[%emt 0:00:33]} 36. Rxd5 {[%emt 0:03:20]} Re8 {[%emt 0:00:58]} 37. Bd6 {[%emt 0:02:05]} Rc6 {[%emt 0:03:54]} 38. Qxb5 {[%emt 0:01:06]} Rec8 {[%emt 0:00:47]} 39. Bg3 {[%emt 0:03:40]} Nb6 {[%emt 0:01:04]} 40. Rf5 {[%emt 0:00:52]} Qe7 {[%emt 0:01:12]} 41. Qb3+ {[%emt 0:02:29]} Rc4 {[%emt 0:01:35]} 42. Rd6 {[%emt 0:01:13]} Kh7 {[%emt 0:00:50]} 43. Rdf6 {[%emt 0:01:56]} Kh8 {[%emt 0:01:11]} 44. Rf7 {[%emt 0:00:51]} Qe6 {[%emt 0:01:04]} 45. Be5+ {[%emt 0:00:22]} Kg8 {[%emt 0:01:34]} 46. Rg7+ {[%emt 0:00:11]} Kh8 {[%emt 0:00:34]} 47. Rg6+ {[%emt 0:00:48]} Qxe5 {[%emt 0:00:58]} 48. Rxe5 {[%emt 0:00:12]} Kh7 {[%emt 0:01:13]} 49. Rd6 {[%emt 0:00:25]} R8c7 {[%emt 0:01:01]} 50. Qb5 {[%emt 0:00:25]} Rc1+ {[%emt 0:01:25]} 51. Kh2 {[%emt 0:00:10]} Nc8 {[%emt 0:01:31]} 52. Rd7+ {[%emt 0:00:32]} Kg6 {[%emt 0:00:45]} 53. Re6+ {[%emt 0:00:14]} Kh5 {[%emt 0:00:36]} 54. g4+ {[%emt 0:00:12]} Kh4 {[%emt 0:00:54]} 55. Rxh6# {[%emt 0:00:36]} 1-0

[Event "Israel-ch Youth U8-18 2024"]
[Site "Kfar Saba"]
[Date "2024.04.17"]
[Round "2.1"]
[White "Pevzner, Maks"]
[Black "Rozen, Eytan"]
[Result "1/2-1/2"]
[ECO "D35"]
[WhiteElo "2090"]
[BlackElo "2499"]
[Annotator "TA"]
[PlyCount "117"]
[EventDate "2024.04.10"]
[EventType "swiss"]
[EventCountry "ISR"]
[SourceTitle "playchess.com"]
[Source "ChessBase"]
[SourceQuality "1"]
[TimeControl "5400+30"]

{[%evp 12,117,13,12,16,19,16,18,17,14,24,28,14,17,14,7,21,6,36,33,33,36,33,8,9,24,6,0,61,40,43,44,39,36,46,-12,-29,-59,-82,-98,-103,-106,-57,-49,-8,-7,0,0,22,15,43,38,82,63,67,0,58,58,71,37,89,66,60,70,90,53,47,44,50,45,86,86,85,84,78,46,67,46,72,76,77,77,82,72,125,124,134,87,161,138,120,100,154,139,135,0,142,142,222,182,414,414,524,188,1381,1335,860,318]} 1. d4 {[%emt 0:00:11]} d5 {[%emt 0:00:27]} 2. c4 {[%emt 0:00:26]} e6 {[%emt 0:00:21]} 3. Nc3 {[%emt 0:00:28]} Nf6 {[%emt 0:00:19]} 4. cxd5 {[%emt 0:00:41]} exd5 {[%emt 0:00:08]} 5. Bg5 {[%emt 0:00:26]} c6 {[%emt 0:00:07]} 6. e3 {[%emt 0:00:32]} h6 {[%emt 0:00:19]} 7. Bh4 {[%emt 0:00:20]} Bd6 {[%emt 0:00:24]} 8. Bd3 {[%emt 0:01:13]} O-O {[%emt 0:00:11]} 9. Qc2 {[%emt 0:03:06]} Re8 {[%emt 0:01:56] The position is equal.} 10. Nge2 {[%emt 0:00:40]} a5 {[%emt 0:00:44]} 11. h3 {[%emt 0:00:38]} Na6 {[%emt 0:00:40][%cal Bb8a6,Ba6c7,Bc7e6][%mdl 32]} 12. a3 {[%emt 0:00:52] Prevents Nb4.} Nc7 {[%emt 0:02:36]} 13. O-O {[%emt 0:01:17]} Ne6 {[%emt 0:00:50]} 14. Rad1 {[%emt 0:05:40]} Rb8 {[%emt 0:08:28]} 15. e4 {[%emt 0:07:15]} dxe4 {[%emt 0:00:46]} 16. Nxe4 {[%emt 0:05:17]} Be7 {[%emt 0:00:16]} 17. Nxf6+ {[%emt 0:04:29]} Bxf6 {[%emt 0:00:08]} 18. Bg3 {[%emt 0:00:27]} Ra8 {[%emt 0:01:44]} 19. Bc4 {[%emt 0:02:33]} b5 {[%emt 0:06:03]} (19... Nxd4 $11 20. Nxd4 Bxd4) 20. d5 {[%emt 0:08:12] White is more active.} bxc4 {[%emt 0:00:15]} 21. dxe6 {[%emt 0:00:06]} Qe7 {[%emt 0:01:43]} 22. exf7+ {[%emt 0:04:01]} Qxf7 {[%emt 0:00:03]} 23. Nd4 {[%emt 0:06:36] Prevents Bf5.} (23. Nc3 $14) 23... Qd5 $11 {[%emt 0:03:36]} 24. Nf3 {[%emt 0:07:28]} Bf5 $1 {[%emt 0:01:42]} 25. Rxd5 {[%emt 0:04:12]} Bxc2 {[%emt 0:00:07] This pair of bishops is nice.} 26. Rd2 {[%emt 0:01:22]} Bb3 {[%emt 0:05:46]} ({Better is} 26... Bd3 $17 27. Re1 Rxe1+ 28. Nxe1 Rd8 29. Nxd3 a4 (29... cxd3 $2 30. Bf4 $19) (29... Rxd3 30. Rc2 $15)) 27. Rc1 {[%emt 0:01:43]} Re4 {[%emt 0:01:16]} 28. Bc7 $1 {[%emt 0:01:18]} Kf7 {[%emt 0:05:26]} 29. Bb6 {[%emt 0:02:28]} a4 {[%emt 0:07:45]} 30. Bd4 {[%emt 0:07:35]} Be7 {[%emt 0:00:15]} 31. Bc3 {[%emt 0:03:26]} Re8 {[%emt 0:02:51]} 32. Ne5+ {[%emt 0:08:00]} Kg8 {[%emt 0:01:37]} 33. Nf3 {[%emt 0:01:31]} (33. Nxc6 Bg5 34. f3 Re1+ (34... Bxd2 35. Bxd2 Re2 36. Bc3 $15) 35. Rxe1 Rxe1+ 36. Kf2 Bxd2 37. Bxd2 Rd1 $17) (33. Rd7 $14) 33... Bc5 {[%emt 0:03:39]} (33... Kf7 $11) 34. Kf1 $14 {[%emt 0:00:15]} R8e7 {[%emt 0:03:39]} 35. Nd4 {[%emt 0:01:17]} Rc7 {[%emt 0:01:41]} (35... Bxd4 $1 $14 36. Rxd4 Rxd4 37. Bxd4 Rd7) 36. Re1 {[%emt 0:00:40]} Rxe1+ {[%emt 0:00:53]} 37. Kxe1 {[%emt 0:00:02]} Kf7 {[%emt 0:02:26]} 38. Re2 {[%emt 0:01:11]} Rd7 {[%emt 0:04:03]} 39. Re4 {[%emt 0:00:33]} (39. Nxc6 $2 Rd1#) 39... Bxd4 $1 {[%emt 0:02:34]} 40. Rxd4 {[%emt 0:00:25][%mdl 4096] Endgame. KRB-KRB} Rd5 {[%emt 0:00:28]} 41. Rf4+ {[%emt 0:00:43]} Kg8 {[%emt 0:00:32]} 42. Rg4 {[%emt 0:00:27]} g5 {[%emt 0:00:33]} 43. Rd4 {[%emt 0:02:25]} Re5+ {[%emt 0:02:03]} 44. Kd2 {[%emt 0:00:41] [#] And now Rd8+ would win.} Re6 {[%emt 0:00:20]} 45. h4 {[%emt 0:00:39]} gxh4 {[%emt 0:02:05]} 46. Rxh4 {[%emt 0:00:03]} Kf7 {[%emt 0:00:34]} 47. g3 {[%emt 0:01:38]} c5 {[%emt 0:00:56]} (47... Rd6+ $142 48. Ke1 Re6+ 49. Kf1 Rd6) 48. Rh5 $16 {[%emt 0:02:00]} Rd6+ {[%emt 0:00:22]} 49. Ke3 {[%emt 0:00:34]} (49. Ke1 $142) 49... Rc6 {[%emt 0:00:20]} (49... Rd3+ $16 50. Ke4 Bc2) 50. Ke4 {[%emt 0:00:29]} Kg6 {[%emt 0:01:37]} 51. Re5 {[%emt 0:00:38]} Kf7 {[%emt 0:02:30]} (51... Bc2+ $142 52. Kd5 Rf6) 52. Rf5+ {[%emt 0:01:42]} Kg6 {[%emt 0:00:36]} 53. Re5 {[%emt 0:00:03]} (53. Ke5 $16) 53... Rf6 {[%emt 0:02:06]} (53... Kf7 $1 $11) 54. f4 {[%emt 0:00:14][%cal Bf2f4,Bf4f5][%mdl 32]} ({But not} 54. Rxc5 $6 Rxf2 55. Rc7 h5 $11) 54... Kf7 {[%emt 0:02:31]} (54... Bc2+ $16 {was necessary.} 55. Kd5 Rf5) 55. Rxc5 {[%emt 0:00:14]} Rg6 $2 {[%emt 0:00:28] [#]} (55... Re6+ {is a better defense.} 56. Be5 Bc2+ 57. Kf3 Bd1+ 58. Kf2 Re8 59. Rxc4 h5) 56. Rc7+ $18 {[%emt 0:00:52]} Kg8 {[%emt 0:01:01]} 57. Kf3 {[%emt 0:00:40]} (57. f5 Rg5 58. g4 (58. Kf4 Bd1 $18)) 57... h5 $2 {[%emt 0:00:52]} (57... Bc2 58. Rc5 (58. Rxc4 h5 $18) 58... Bd1+ 59. Kg2 Rd6) 58. f5 {[%emt 0:00:08]} Bd1+ {[%emt 0:01:11]} 59. Kf2 $2 {[%emt 0:00:17][%mdl 32768] Weighted Error Value: White=0.21 (precise) /Black=0.28 (precise) .  Mistake:       	White=5     	Black=11     Inaccurate:     	White=4     	Black=6      OK:         	White=19    	Black=17     Best:        	White=2     	Black=1      Strong:       	White=1     	Black=2     . An unexpected result.} (59. Kf4 Rg4+ 60. Ke5) 1/2-1/2

[Event "Israel-ch Youth U8-18 2024"]
[Site "Kfar Saba"]
[Date "2024.04.17"]
[Round "2.2"]
[White "Sokolovsky, Yahli"]
[Black "Pelech, Roee"]
[Result "1-0"]
[ECO "B47"]
[WhiteElo "2490"]
[BlackElo "2215"]
[Annotator "TA"]
[PlyCount "65"]
[EventDate "2024.04.10"]
[EventType "swiss"]
[EventCountry "ISR"]
[SourceTitle "playchess.com"]
[Source "ChessBase"]
[SourceQuality "1"]
[TimeControl "5400+30"]

{[%evp 15,65,18,35,24,53,31,50,42,77,37,36,41,160,144,173,167,161,164,540,193,306,295,668,645,675,640,643,643,625,610,968,979,973,950,979,978,978,931,29960,29968,29971,29972,29973,29973,29972,29973,5410,5406,29986,29987,29987,29988]} 1. e4 {[%emt 0:00:03]} c5 {[%emt 0:00:13]} 2. Nf3 {[%emt 0:00:05]} e6 {[%emt 0:00:03]} 3. d4 {[%emt 0:00:06]} cxd4 {[%emt 0:00:05]} 4. Nxd4 {[%emt 0:00:04]} Nc6 {[%emt 0:00:08]} 5. Nc3 {[%emt 0:00:08]} Qc7 {[%emt 0:00:07]} 6. Be2 {[%emt 0:00:10]} a6 {[%emt 0:01:24]} 7. O-O {[%emt 0:00:07]} b5 {[%emt 0:00:47]} 8. Nxc6 {[%emt 0:00:13]} dxc6 {[%emt 0:00:06][%cal Bd7c6,Bc6c5,Bc5c4][%mdl 32]} 9. Qd3 {[%emt 0:00:19][%cal Oe4e5]} Bb7 {[%emt 0:01:10]} 10. Rd1 {[%emt 0:00:07][%cal Oc1f4]} Nf6 {[%emt 0:00:56]} 11. Bg5 {[%emt 0:09:39] White is slightly better.} c5 {[%emt 0:23:36]} 12. Bf3 $40 {[%emt 0:14:19][%cal Oe4e5][%mdl 128] White mounts an attack. White is more active.} c4 {[%emt 0:10:13]} 13. Qe2 {[%emt 0:00:15]} e5 {[%emt 0:16:07] [#] Black is now going downhill.} ({Black should play} 13... h6 $14 14. Bh4 Rc8) 14. Bxf6 $1 $16 {[%emt 0:04:57]} gxf6 {[%emt 0:00:04]} 15. Bg4 {[%emt 0:00:47]} Bc6 {[%emt 0:03:52]} 16. Qf3 {[%emt 0:10:27][%cal Og4d7] Strongly threatening Bd7+!} ({Much less strong is} 16. Nd5 Bxd5 17. Rxd5 (17. exd5 Bd6 $16) 17... Rd8 18. Rxd8+ Kxd8) 16... Rg8 $2 {[%emt 0:04:08]} (16... Be7 {is more resistant.} 17. a3 Rd8 18. Rxd8+ Qxd8) 17. h3 $2 {[%emt 0:04:40]} (17. Bd7+ Qxd7 (17... Bxd7 $2 {perishes.} 18. Nd5 $18) 18. Rxd7 Bxd7 19. Nd5 (19. Qxf6 Rg6 $18)) 17... Rg6 {[%emt 0:03:02]} (17... Be7 $142 18. Nd5 Bxd5) 18. Bf5 $18 {[%emt 0:02:16]} Rg7 {[%emt 0:02:06] [#]} (18... Be7 19. Bxg6 hxg6) 19. Bd7+ $1 {[%emt 0:04:32][%mdl 512]} Qxd7 {[%emt 0:03:38]} 20. Rxd7 {[%emt 0:00:08]} Kxd7 {[%emt 0:00:02][%cal Be8d7,Bd7c7,Bc7b7][%mdl 32]} 21. Qxf6 {[%emt 0:00:26]} Re8 {[%emt 0:00:15]} 22. a4 {[%emt 0:03:18][%cal Ba2a4,Ba4a5][%mdl 32]} b4 {[%emt 0:04:43]} 23. Rd1+ {[%emt 0:00:11]} Kc7 {[%emt 0:00:01]} 24. Nd5+ {[%emt 0:00:15]} Kb7 {[%emt 0:00:03]} 25. a5 {[%emt 0:00:37]} b3 {[%emt 0:06:10]} 26. cxb3 {[%emt 0:00:19]} cxb3 {[%emt 0:00:17]} 27. Rc1 {[%emt 0:05:44]} Rc8 {[%emt 0:02:16]} 28. Nb6 {[%emt 0:01:02]} Rxg2+ {[%emt 0:02:51]} 29. Kxg2 {[%emt 0:00:16]} Bxe4+ {[%emt 0:00:03]} 30. f3 {[%emt 0:00:10]} Rxc1 {[%emt 0:00:15]} 31. Qxf7+ {[%emt 0:00:33]} Kc6 {[%emt 0:02:15]} 32. fxe4 {[%emt 0:01:01]} Rc2+ {[%emt 0:00:47]} 33. Kf3 {[%emt 0:00:02] Weighted Error Value: White=0.17 (very precise) /Black=1.05.  Mistake:       	White=1     	Black=4      Inaccurate:     	White=1     	Black=2      OK:         	White=5     	Black=2      Strong:       	White=1     	---        Brilliant:      	White=1     	---} 1-0